[Event "106th British-ch Major 2019"]
[Site "Torquay"]
[Date "2019.08.04"]
[Round "9.25"]
[White "Mueller, Jens"]
[Black "Kirupakaran, Vishnu"]
[Result "0-1"]
[ECO "D02"]
[WhiteElo "1965"]
[BlackElo "1771"]
[Annotator "NA"]
[PlyCount "96"]
[EventDate "2019.07.27"]
[EventType "swiss"]
[EventCountry "GBR"]
[SourceTitle "playchess.com"]
[Source "ChessBase"]
[SourceQuality "1"]
[TimeControl "40/5400+30:1800+30"]

1. d4 {[%emt 0:00:00]} d5 {[%emt 0:02:36]} 2. Bf4 {[%emt 0:00:00]} c5 {[%emt 0:00:42]} 3. e3 {[%emt 0:00:00]} Nc6 {[%emt 0:00:16]} 4. c3 {[%emt 0:00:20]} Nf6 {[%emt 0:00:12]} 5. Nd2 {[%emt 0:00:41]} e6 {[%emt 0:00:11]} 6. Ngf3 {[%emt 0:00:47]} Bd6 {[%emt 0:00:13]} 7. Bg3 {[%emt 0:00:33]} O-O {[%emt 0:00:09]} 8. Bd3 {[%emt 0:02:23]} b6 {[%emt 0:00:24]} 9. e4 {[%emt 0:03:24]} Be7 {[%emt 0:07:43]} 10. e5 {[%emt 0:00:15]} Nd7 {[%emt 0:07:39]} 11. h4 {[%emt 0:06:52]} f5 {[%emt 0:01:08]} 12. Bf4 {[%emt 0:05:29]} Qe8 {[%emt 0:18:12]} 13. a3 {[%emt 0:09:36]} a6 {[%emt 0:07:31]} 14. h5 {[%emt 0:03:18]} b5 {[%emt 0:00:46]} 15. Rh3 {[%emt 0:07:57]} b4 {[%emt 0:06:22]} 16. axb4 {[%emt 0:02:00]} cxd4 {[%emt 0:01:11]} 17. Nxd4 {[%emt 0:01:46]} Ndxe5 {[%emt 0:05:58]} 18. N2f3 {[%emt 0:06:02]} Nxf3+ {[%emt 0:13:14]} 19. Nxf3 {[%emt 0:02:17]} Bb7 {[%emt 0:00:56]} 20. Kf1 {[%emt 0:05:53]} Qd7 {[%emt 0:04:37]} 21. Ne5 {[%emt 0:03:18]} Nxe5 {[%emt 0:06:03]} 22. Bxe5 {[%emt 0:00:07]} Bf6 {[%emt 0:04:18]} 23. Qe2 {[%emt 0:01:21]} Qc6 {[%emt 0:00:28]} 24. Rg3 {[%emt 0:00:59]} Rf7 {[%emt 0:01:58]} 25. f4 {[%emt 0:06:40]} Kf8 {[%emt 0:07:15]} 26. Re3 {[%emt 0:01:03]} Qb6 {[%emt 0:01:41]} 27. Re1 {[%emt 0:03:39]} Re8 {[%emt 0:00:35]} 28. h6 {[%emt 0:09:11]} g6 {[%emt 0:00:28]} 29. Bxf6 {[%emt 0:01:29]} Rxf6 {[%emt 0:00:02]} 30. Re5 {[%emt 0:00:17]} d4 {[%emt 0:01:18]} 31. Bc4 {[%emt 0:01:13]} dxc3 {[%emt 0:00:34]} 32. bxc3 {[%emt 0:00:35]} Kf7 {[%emt 0:00:42]} 33. Qe3 {[%emt 0:00:34]} Qc6 {[%emt 0:00:23]} 34. Bd5 {[%emt 0:01:01]} Qb5+ {[%emt 0:00:41]} 35. c4 {[%emt 0:00:29]} Qxb4 {[%emt 0:00:18]} 36. Bxe6+ {[%emt 0:01:21]} Rfxe6 {[%emt 0:00:39]} 37. Qd3 {[%emt 0:03:08]} Rxe5 {[%emt 0:00:33]} 38. fxe5 {[%emt 0:00:06]} Qc5 {[%emt 0:00:33]} 39. Qd7+ {[%emt 0:00:16]} Qe7 {[%emt 0:00:29]} 40. e6+ {[%emt 0:00:14]} Kg8 {[%emt 0:00:29]} 41. c5 {[%emt 0:30:16]} Bc8 {[%emt 0:09:31]} 42. Qd4 {[%emt 0:00:00]} Qf8 {[%emt 0:00:56]} 43. c6 {[%emt 0:00:00]} Bxe6 {[%emt 0:06:41]} 44. c7 {[%emt 0:00:00]} Qxh6 {[%emt 0:06:20]} 45. Rxe6 {[%emt 0:00:00]} Qc1+ {[%emt 0:03:50]} 46. Kf2 {[%emt 0:00:00]} Qc2+ {[%emt 0:00:56]} 47. Kg1 {[%emt 0:00:00]} Qc1+ {[%emt 0:00:27]} 48. Kh2 {[%emt 0:00:00]} Qxc7+ {[%emt 0:00:16]} 0-1

[Event "106th British-ch Major 2019"]
[Site "Torquay"]
[Date "2019.08.04"]
[Round "9.26"]
[White "Fathallah, Joe"]
[Black "Gray, Edward"]
[Result "1/2-1/2"]
[ECO "A30"]
[WhiteElo "1952"]
[BlackElo "1757"]
[Annotator "NA"]
[PlyCount "115"]
[EventDate "2019.07.27"]
[EventType "swiss"]
[EventCountry "GBR"]
[SourceTitle "playchess.com"]
[Source "ChessBase"]
[SourceQuality "1"]
[TimeControl "40/5400+30:1800+30"]

1. b3 {[%emt 0:00:00]} Nf6 {[%emt 0:00:16]} 2. Bb2 {[%emt 0:00:00]} g6 {[%emt 0:00:09]} 3. e3 {[%emt 0:02:54]} Bg7 {[%emt 0:00:07]} 4. Nf3 {[%emt 0:00:08]} O-O {[%emt 0:00:04]} 5. c4 {[%emt 0:00:51]} d5 {[%emt 0:01:36]} 6. cxd5 {[%emt 0:01:20]} Nxd5 {[%emt 0:00:31]} 7. Bxg7 {[%emt 0:00:35]} Kxg7 {[%emt 0:00:07]} 8. d4 {[%emt 0:00:52]} c5 {[%emt 0:01:57]} 9. Be2 {[%emt 0:06:42]} Nc6 {[%emt 0:00:17]} 10. O-O {[%emt 0:03:53]} cxd4 {[%emt 0:00:46]} 11. Nxd4 {[%emt 0:01:07]} e5 {[%emt 0:00:33]} 12. Nxc6 {[%emt 0:02:24]} bxc6 {[%emt 0:00:08]} 13. Qc2 {[%emt 0:01:40]} Qb6 {[%emt 0:02:19]} 14. Nc3 {[%emt 0:03:35]} Re8 {[%emt 0:06:11]} 15. Na4 {[%emt 0:02:25]} Qc7 {[%emt 0:00:26]} 16. Rfc1 {[%emt 0:02:30]} Bd7 {[%emt 0:00:47]} 17. Nc5 {[%emt 0:03:21]} Rac8 {[%emt 0:02:26]} 18. Rd1 {[%emt 0:08:52]} Be6 {[%emt 0:00:46]} 19. Rac1 {[%emt 0:01:10]} Nb4 {[%emt 0:01:38]} 20. Qb2 {[%emt 0:01:13]} Rcd8 {[%emt 0:05:34]} 21. Rxd8 {[%emt 0:05:08]} Rxd8 {[%emt 0:00:15]} 22. a3 {[%emt 0:01:57]} Nd5 {[%emt 0:00:11]} 23. Nxe6+ {[%emt 0:00:57]} fxe6 {[%emt 0:00:06]} 24. Bb5 {[%emt 0:04:32]} Ne7 {[%emt 0:00:33]} 25. Bc4 {[%emt 0:11:22]} Kf7 {[%emt 0:07:56]} 26. Qe2 {[%emt 0:03:26]} Qd6 {[%emt 0:03:07]} 27. Qf3+ {[%emt 0:01:08]} Kg7 {[%emt 0:00:13]} 28. e4 {[%emt 0:02:53]} Qd2 {[%emt 0:02:41]} 29. Rf1 {[%emt 0:00:57]} Rd6 {[%emt 0:01:25]} 30. Qh3 {[%emt 0:02:09]} Qd4 {[%emt 0:01:36]} 31. Qf3 {[%emt 0:05:45]} Ng8 {[%emt 0:03:10]} 32. g3 {[%emt 0:04:48]} Nf6 {[%emt 0:00:47]} 33. Re1 {[%emt 0:00:44]} h5 {[%emt 0:02:35]} 34. h3 {[%emt 0:03:41]} a5 {[%emt 0:02:47]} 35. Re3 {[%emt 0:03:25]} Qa1+ {[%emt 0:01:06]} 36. Kh2 {[%emt 0:06:05]} Qxa3 {[%emt 0:00:43]} 37. Rd3 {[%emt 0:00:24]} Qc5 {[%emt 0:00:38]} 38. Kg2 {[%emt 0:00:57]} Qb4 {[%emt 0:01:30]} 39. Qe3 {[%emt 0:01:12]} Qa3 {[%emt 0:02:27]} 40. Qa7+ {[%emt 0:00:55]} Kh6 {[%emt 0:01:06]} 41. Qe3+ {[%emt 0:03:37]} Kg7 {[%emt 0:00:18]} 42. Rxd6 {[%emt 0:01:17]} Qxd6 {[%emt 0:00:08]} 43. Qa7+ {[%emt 0:02:08]} Kh6 {[%emt 0:01:14]} 44. Qxa5 {[%emt 0:01:38]} Nxe4 {[%emt 0:00:13]} 45. Qe1 {[%emt 0:00:26]} Nd2 {[%emt 0:03:43]} 46. Bxe6 {[%emt 0:02:00]} Qxe6 {[%emt 0:00:14]} 47. Qxd2+ {[%emt 0:00:04]} Kh7 {[%emt 0:01:35]} 48. Qd3 {[%emt 0:03:32]} Kh6 {[%emt 0:01:48]} 49. h4 {[%emt 0:00:40]} Qf6 {[%emt 0:01:26]} 50. b4 {[%emt 0:01:34]} Qe6 {[%emt 0:00:46]} 51. Qe3+ {[%emt 0:00:44]} Kg7 {[%emt 0:00:47]} 52. Qe4 {[%emt 0:00:23]} Qd6 {[%emt 0:01:08]} 53. Kf3 {[%emt 0:01:11]} Qd1+ {[%emt 0:00:55]} 54. Ke3 {[%emt 0:02:37]} Qe1+ {[%emt 0:00:41]} 55. Kd3 {[%emt 0:00:24]} Qb1+ {[%emt 0:00:15]} 56. Ke3 {[%emt 0:00:07]} Qe1+ {[%emt 0:00:06]} 57. Kf3 {[%emt 0:00:41]} Qh1+ {[%emt 0:00:06]} 58. Ke3 {[%emt 0:00:06]} 1/2-1/2

[Event "106th British-ch Major 2019"]
[Site "Torquay"]
[Date "2019.08.04"]
[Round "9.27"]
[White "Pink, Joshua"]
[Black "Gogia, Armaan"]
[Result "0-1"]
[ECO "B90"]
[WhiteElo "1907"]
[BlackElo "1754"]
[Annotator "NA"]
[PlyCount "118"]
[EventDate "2019.07.27"]
[EventType "swiss"]
[EventCountry "GBR"]
[SourceTitle "playchess.com"]
[Source "ChessBase"]
[SourceQuality "1"]
[TimeControl "40/5400+30:1800+30"]

1. e4 {[%emt 0:00:07]} c5 {[%emt 0:00:00]} 2. Nf3 {[%emt 0:00:10]} d6 {[%emt 0:00:00]} 3. d4 {[%emt 0:00:14]} cxd4 {[%emt 0:00:00]} 4. Nxd4 {[%emt 0:00:10]} Nf6 {[%emt 0:00:00]} 5. Nc3 {[%emt 0:00:12]} a6 {[%emt 0:00:00]} 6. h3 {[%emt 0:00:57]} Qb6 {[%emt 0:00:00]} 7. Nb3 {[%emt 0:03:10]} Nc6 {[%emt 0:00:03]} 8. Be3 {[%emt 0:02:04]} Qc7 {[%emt 0:00:02]} 9. Be2 {[%emt 0:04:09]} e6 {[%emt 0:00:03]} 10. a4 {[%emt 0:02:04]} b6 {[%emt 0:01:49]} 11. O-O {[%emt 0:00:27]} Be7 {[%emt 0:01:15]} 12. f4 {[%emt 0:02:40]} Bb7 {[%emt 0:01:56]} 13. Bf3 {[%emt 0:00:11]} O-O {[%emt 0:04:05]} 14. Qe2 {[%emt 0:02:01]} Rfd8 {[%emt 0:07:11]} 15. Rad1 {[%emt 0:04:24]} Nd7 {[%emt 0:07:41]} 16. Nd4 {[%emt 0:03:24]} Bf6 {[%emt 0:04:54]} 17. g4 {[%emt 0:12:41]} Rac8 {[%emt 0:03:31]} 18. g5 {[%emt 0:05:29]} Bxd4 {[%emt 0:00:59]} 19. Bxd4 {[%emt 0:00:10]} Nxd4 {[%emt 0:00:04]} 20. Rxd4 {[%emt 0:00:35]} Qc5 {[%emt 0:01:35]} 21. Qf2 {[%emt 0:01:33]} e5 {[%emt 0:01:34]} 22. fxe5 {[%emt 0:05:16]} Nxe5 {[%emt 0:00:57]} 23. Bg2 {[%emt 0:01:43]} Rc7 {[%emt 0:04:49]} 24. Nd5 {[%emt 0:05:27]} Bxd5 {[%emt 0:01:06]} 25. Rxd5 {[%emt 0:00:36]} Qxc2 {[%emt 0:01:05]} 26. Qxb6 {[%emt 0:03:58]} Qc6 {[%emt 0:04:46]} 27. Qxc6 {[%emt 0:02:53]} Rxc6 {[%emt 0:00:44]} 28. Rfd1 {[%emt 0:00:44]} Nc4 {[%emt 0:01:23]} 29. e5 {[%emt 0:02:23]} Nxb2 {[%emt 0:01:56]} 30. Rxd6 {[%emt 0:01:08]} Rcxd6 {[%emt 0:00:10]} 31. Rxd6 {[%emt 0:00:46]} Rxd6 {[%emt 0:00:09]} 32. exd6 {[%emt 0:00:06]} Kf8 {[%emt 0:00:08]} 33. Bf1 {[%emt 0:03:38]} Nxa4 {[%emt 0:01:55]} 34. Bxa6 {[%emt 0:00:19]} Nc5 {[%emt 0:00:25]} 35. Bc4 {[%emt 0:02:13]} Ne4 {[%emt 0:00:46]} 36. d7 {[%emt 0:01:51]} Ke7 {[%emt 0:00:30]} 37. h4 {[%emt 0:02:32]} Nd6 {[%emt 0:06:14]} 38. Bd3 {[%emt 0:00:43]} Kxd7 {[%emt 0:01:55]} 39. h5 {[%emt 0:01:38]} h6 {[%emt 0:02:06]} 40. gxh6 {[%emt 0:00:44]} gxh6 {[%emt 0:00:09]} 41. Kg2 {[%emt 0:30:07]} Ke7 {[%emt 0:30:37]} 42. Kg3 {[%emt 0:00:18]} Kf6 {[%emt 0:00:47]} 43. Kf4 {[%emt 0:00:54]} Nb7 {[%emt 0:01:48]} 44. Be2 {[%emt 0:00:33]} Nc5 {[%emt 0:00:36]} 45. Bb5 {[%emt 0:01:53]} Ne6+ {[%emt 0:00:59]} 46. Kg4 {[%emt 0:01:11]} Ke5 {[%emt 0:01:12]} 47. Bd3 {[%emt 0:00:52]} Ng7 {[%emt 0:01:39]} 48. Be2 {[%emt 0:00:56]} f5+ {[%emt 0:02:11]} 49. Kg3 {[%emt 0:00:06]} Ke4 {[%emt 0:02:52]} 50. Bf3+ {[%emt 0:00:07]} Ke3 {[%emt 0:01:12]} 51. Bd1 {[%emt 0:00:22]} f4+ {[%emt 0:05:08]} 52. Kg4 {[%emt 0:00:07]} Ke4 {[%emt 0:06:50]} 53. Bc2+ {[%emt 0:00:40]} Ke5 {[%emt 0:00:07]} 54. Bd1 {[%emt 0:00:08]} Nf5 {[%emt 0:00:32]} 55. Ba4 {[%emt 0:00:51]} Ne3+ {[%emt 0:02:02]} 56. Kf3 {[%emt 0:00:12]} Kf5 {[%emt 0:00:05]} 57. Bd7+ {[%emt 0:00:25]} Kg5 {[%emt 0:00:39]} 58. Be8 {[%emt 0:00:39]} Ng4 {[%emt 0:01:10]} 59. Bb5 {[%emt 0:01:52]} Nf6 {[%emt 0:00:42]} 0-1

[Event "106th British-ch Major 2019"]
[Site "Torquay"]
[Date "2019.08.04"]
[Round "9.28"]
[White "Salmons, Calum"]
[Black "Metcalfe, Charlie P"]
[Result "0-1"]
[ECO "C00"]
[WhiteElo "1898"]
[BlackElo "1739"]
[Annotator "NA"]
[PlyCount "76"]
[EventDate "2019.07.27"]
[EventType "swiss"]
[EventCountry "GBR"]
[SourceTitle "playchess.com"]
[Source "ChessBase"]
[SourceQuality "1"]
[TimeControl "40/5400+30:1800+30"]

1. e4 {[%emt 0:00:00]} e6 {[%emt 0:00:00]} 2. Nf3 {[%emt 0:00:00]} d5 {[%emt 0:00:00]} 3. e5 {[%emt 0:00:00]} c5 {[%emt 0:00:00]} 4. b4 {[%emt 0:00:00]} cxb4 {[%emt 0:00:00]} 5. d4 {[%emt 0:00:00]} Nc6 {[%emt 0:00:00]} 6. a3 {[%emt 0:00:02]} f6 {[%emt 0:00:00]} 7. axb4 {[%emt 0:02:14]} Bxb4+ {[%emt 0:00:00]} 8. c3 {[%emt 0:00:07]} Be7 {[%emt 0:00:00]} 9. Bd3 {[%emt 0:01:57]} fxe5 {[%emt 0:00:00]} 10. Nxe5 {[%emt 0:00:21]} Nf6 {[%emt 0:00:00]} 11. O-O {[%emt 0:02:00]} O-O {[%emt 0:00:03]} 12. f4 {[%emt 0:01:02]} Bd7 {[%emt 0:14:04]} 13. Ra2 {[%emt 0:11:09]} Be8 {[%emt 0:00:56]} 14. g4 {[%emt 0:02:37]} Qb6 {[%emt 0:08:34]} 15. g5 {[%emt 0:11:13]} Ne4 {[%emt 0:01:09]} 16. Rb2 {[%emt 0:02:09]} Qc7 {[%emt 0:01:34]} 17. Bxe4 {[%emt 0:08:36]} dxe4 {[%emt 0:00:02]} 18. Qb3 {[%emt 0:00:20]} Nxe5 {[%emt 0:03:13]} 19. fxe5 {[%emt 0:03:30]} Rxf1+ {[%emt 0:00:20]} 20. Kxf1 {[%emt 0:00:06]} Qb6 {[%emt 0:29:00]} 21. Qxb6 {[%emt 0:07:42]} axb6 {[%emt 0:00:01]} 22. Rxb6 {[%emt 0:00:32]} Bc6 {[%emt 0:11:07]} 23. Rb2 {[%emt 0:11:03]} Kf7 {[%emt 0:02:27]} 24. h4 {[%emt 0:03:02]} Kg6 {[%emt 0:00:45]} 25. Kg2 {[%emt 0:09:11]} Rf8 {[%emt 0:08:13]} 26. Kg3 {[%emt 0:01:02]} Rf1 {[%emt 0:01:55]} 27. Bf4 {[%emt 0:06:36]} e3 {[%emt 0:00:17]} 28. d5 {[%emt 0:08:37]} Bxd5 {[%emt 0:00:20]} 29. c4 {[%emt 0:00:00]} Bc6 {[%emt 0:01:00]} 30. Nc3 {[%emt 0:00:25]} Kf5 {[%emt 0:07:33]} 31. Ne2 {[%emt 0:01:42]} Rf3+ {[%emt 0:00:28]} 32. Kh2 {[%emt 0:00:40]} Rxf4 {[%emt 0:04:40]} 33. Nxf4 {[%emt 0:00:22]} Kxf4 {[%emt 0:00:02]} 34. Kg1 {[%emt 0:02:52]} Bf3 {[%emt 0:02:02]} 35. Kf1 {[%emt 0:00:44]} e2+ {[%emt 0:00:28]} 36. Ke1 {[%emt 0:00:14]} Bc5 {[%emt 0:00:41]} 37. Rb5 {[%emt 0:01:15]} Bd4 {[%emt 0:00:12]} 38. Rb3 {[%emt 0:00:18]} Kg3 {[%emt 0:00:19]} 0-1

[Event "106th British-ch Major 2019"]
[Site "Torquay"]
[Date "2019.08.04"]
[Round "9.29"]
[White "Merriman, James"]
[Black "Rushbrooke, Tibo"]
[Result "0-1"]
[ECO "A81"]
[WhiteElo "1808"]
[BlackElo "1700"]
[Annotator "NA"]
[PlyCount "132"]
[EventDate "2019.07.27"]
[EventType "swiss"]
[EventCountry "GBR"]
[SourceTitle "playchess.com"]
[Source "ChessBase"]
[SourceQuality "1"]
[TimeControl "40/5400+30:1800+30"]

1. d4 {[%emt 0:00:00]} f5 {[%emt 0:00:00]} 2. g3 {[%emt 0:00:00]} Nf6 {[%emt 0:00:00]} 3. Bg2 {[%emt 0:00:13]} e6 {[%emt 0:00:00]} 4. Nh3 {[%emt 0:00:09]} Be7 {[%emt 0:00:00]} 5. Nd2 {[%emt 0:00:21]} O-O {[%emt 0:04:00]} 6. O-O {[%emt 0:00:30]} d6 {[%emt 0:03:04]} 7. c3 {[%emt 0:00:10]} Kh8 {[%emt 0:04:55]} 8. Qb3 {[%emt 0:01:35]} Qe8 {[%emt 0:21:00]} 9. Bxb7 {[%emt 0:02:21]} Bxb7 {[%emt 0:00:03]} 10. Qxb7 {[%emt 0:00:10]} Nc6 {[%emt 0:02:15]} 11. f4 {[%emt 0:12:59]} Rb8 {[%emt 0:08:28]} 12. Qa6 {[%emt 0:01:02]} Rb6 {[%emt 0:00:57]} 13. Qd3 {[%emt 0:00:39]} Qh5 {[%emt 0:04:34]} 14. Nf2 {[%emt 0:00:35]} e5 {[%emt 0:05:03]} 15. Nc4 {[%emt 0:02:25]} e4 {[%emt 0:14:22]} 16. Qc2 {[%emt 0:00:22]} Rbb8 {[%emt 0:00:09]} 17. Ne3 {[%emt 0:02:24]} d5 {[%emt 0:06:14]} 18. a4 {[%emt 0:09:16]} Rg8 {[%emt 0:06:16]} 19. Ng2 {[%emt 0:05:08]} Rbf8 {[%emt 0:04:16]} 20. e3 {[%emt 0:01:56]} Bd6 {[%emt 0:09:17]} 21. Qd1 {[%emt 0:00:43]} Ng4 {[%emt 0:02:52]} 22. h3 {[%emt 0:02:14]} Nf6 {[%emt 0:00:38]} 23. Qxh5 {[%emt 0:00:16]} Nxh5 {[%emt 0:00:04]} 24. g4 {[%emt 0:00:49]} Nf6 {[%emt 0:01:30]} 25. g5 {[%emt 0:00:51]} Nh5 {[%emt 0:01:21]} 26. b4 {[%emt 0:01:27]} h6 {[%emt 0:00:50]} 27. h4 {[%emt 0:00:26]} hxg5 {[%emt 0:00:02]} 28. hxg5 {[%emt 0:00:09]} g6 {[%emt 0:00:41]} 29. Nh4 {[%emt 0:00:53]} Rf7 {[%emt 0:00:46]} 30. Kg2 {[%emt 0:00:33]} Rh7 {[%emt 0:00:11]} 31. Rh1 {[%emt 0:00:22]} Kg7 {[%emt 0:00:28]} 32. Bb2 {[%emt 0:01:03]} Rgh8 {[%emt 0:00:21]} 33. Rh3 {[%emt 0:03:35]} Nxf4+ {[%emt 0:01:03]} 34. exf4 {[%emt 0:00:08]} Rxh4 {[%emt 0:00:05]} 35. Rah1 {[%emt 0:00:14]} Rxh3 {[%emt 0:00:33]} 36. Nxh3 {[%emt 0:00:10]} Rxh3 {[%emt 0:00:24]} 37. Kxh3 {[%emt 0:00:30]} Bxf4 {[%emt 0:00:07]} 38. Bc1 {[%emt 0:00:19]} Bxc1 {[%emt 0:00:51]} 39. Rxc1 {[%emt 0:00:10]} f4 {[%emt 0:00:38]} 40. Kg4 {[%emt 0:00:38]} f3 {[%emt 0:00:07]} 41. Kf4 {[%emt 0:30:20]} Kf7 {[%emt 0:30:05]} 42. Ra1 {[%emt 0:00:42]} Ke6 {[%emt 0:00:37]} 43. a5 {[%emt 0:00:15]} Ne7 {[%emt 0:01:42]} 44. b5 {[%emt 0:04:04]} Nf5 {[%emt 0:00:04]} 45. Rb1 {[%emt 0:00:48]} Nd6 {[%emt 0:00:55]} 46. a6 {[%emt 0:03:09]} Nc4 {[%emt 0:00:11]} 47. Ra1 {[%emt 0:06:43]} f2 {[%emt 0:00:21]} 48. Kg3 {[%emt 0:00:33]} e3 {[%emt 0:00:08]} 49. Kf3 {[%emt 0:00:04]} Kf5 {[%emt 0:00:37]} 50. Ke2 {[%emt 0:00:29]} Nd2 {[%emt 0:00:41]} 51. Kxe3 {[%emt 0:00:08]} f1=Q {[%emt 0:00:05]} 52. Rxf1+ {[%emt 0:00:13]} Nxf1+ {[%emt 0:00:03]} 53. Kd3 {[%emt 0:00:15]} Kxg5 {[%emt 0:00:10]} 54. c4 {[%emt 0:00:09]} dxc4+ {[%emt 0:00:19]} 55. Kxc4 {[%emt 0:00:06]} Kf6 {[%emt 0:01:21]} 56. Kc5 {[%emt 0:00:54]} Ke7 {[%emt 0:00:42]} 57. Kc6 {[%emt 0:00:09]} Kd8 {[%emt 0:01:25]} 58. d5 {[%emt 0:00:11]} Kc8 {[%emt 0:00:15]} 59. b6 {[%emt 0:01:14]} cxb6 {[%emt 0:00:12]} 60. d6 {[%emt 0:00:05]} Ne3 {[%emt 0:01:01]} 61. d7+ {[%emt 0:00:05]} Kd8 {[%emt 0:00:10]} 62. Kb7 {[%emt 0:00:12]} Nd5 {[%emt 0:00:23]} 63. Kxa7 {[%emt 0:00:11]} g5 {[%emt 0:00:37]} 64. Kb7 {[%emt 0:00:27]} g4 {[%emt 0:00:06]} 65. a7 {[%emt 0:00:09]} Nc7 {[%emt 0:00:02]} 66. Kxb6 {[%emt 0:00:25]} g3 {[%emt 0:00:07]} 0-1

[Event "106th British-ch Major 2019"]
[Site "Torquay"]
[Date "2019.08.04"]
[Round "9.30"]
[White "Pattni, Kishan"]
[Black "Ruane, Brendan J"]
[Result "0-1"]
[ECO "A40"]
[WhiteElo "1608"]
[BlackElo "1904"]
[Annotator "NA"]
[PlyCount "80"]
[EventDate "2019.07.27"]
[EventType "swiss"]
[EventCountry "GBR"]
[SourceTitle "playchess.com"]
[Source "ChessBase"]
[SourceQuality "1"]
[TimeControl "40/5400+30:1800+30"]

1. c4 {[%emt 0:00:14]} b6 {[%emt 0:00:00]} 2. d4 {[%emt 0:00:17]} Bb7 {[%emt 0:00:00]} 3. Nc3 {[%emt 0:00:09]} e6 {[%emt 0:00:03]} 4. e4 {[%emt 0:00:14]} Bb4 {[%emt 0:00:16]} 5. f3 {[%emt 0:00:07]} Bxc3+ {[%emt 0:00:41]} 6. bxc3 {[%emt 0:00:10]} f5 {[%emt 0:00:47]} 7. e5 {[%emt 0:02:19]} Nh6 {[%emt 0:00:17]} 8. Nh3 {[%emt 0:01:27]} Nf7 {[%emt 0:01:58]} 9. Qd2 {[%emt 0:03:41]} O-O {[%emt 0:02:51]} 10. Nf4 {[%emt 0:03:18]} Re8 {[%emt 0:04:55]} 11. Nd3 {[%emt 0:09:19]} Nc6 {[%emt 0:01:03]} 12. c5 {[%emt 0:01:40]} Na5 {[%emt 0:02:40]} 13. Qf2 {[%emt 0:02:57]} Rc8 {[%emt 0:07:09]} 14. h4 {[%emt 0:02:50]} d6 {[%emt 0:00:44]} 15. f4 {[%emt 0:02:08]} Qd7 {[%emt 0:01:08]} 16. Be3 {[%emt 0:04:52]} Qa4 {[%emt 0:04:10]} 17. Be2 {[%emt 0:02:58]} Be4 {[%emt 0:04:31]} 18. O-O {[%emt 0:03:09]} Bxd3 {[%emt 0:05:15]} 19. Bxd3 {[%emt 0:00:16]} bxc5 {[%emt 0:00:07]} 20. exd6 {[%emt 0:02:35]} cxd4 {[%emt 0:01:25]} 21. d7 {[%emt 0:01:22]} Qxd7 {[%emt 0:00:13]} 22. Bxd4 {[%emt 0:00:31]} c5 {[%emt 0:00:40]} 23. Ba6 {[%emt 0:00:37]} cxd4 {[%emt 0:00:30]} 24. Bxc8 {[%emt 0:00:14]} Rxc8 {[%emt 0:00:59]} 25. Rfd1 {[%emt 0:00:52]} d3 {[%emt 0:01:35]} 26. Qe1 {[%emt 0:01:17]} Nc4 {[%emt 0:01:42]} 27. Rab1 {[%emt 0:00:35]} d2 {[%emt 0:04:50]} 28. Qe2 {[%emt 0:04:40]} Nfd6 {[%emt 0:02:11]} 29. Qd3 {[%emt 0:01:14]} Qc6 {[%emt 0:00:45]} 30. Kh2 {[%emt 0:02:11]} Ne4 {[%emt 0:01:15]} 31. Rf1 {[%emt 0:00:57]} Qd6 {[%emt 0:02:49]} 32. Qf3 {[%emt 0:01:48]} a5 {[%emt 0:03:25]} 33. Rb7 {[%emt 0:00:56]} Qd5 {[%emt 0:01:38]} 34. Rfb1 {[%emt 0:01:06]} Ncd6 {[%emt 0:00:41]} 35. Rd7 {[%emt 0:01:07]} Qc5 {[%emt 0:03:03]} 36. Qh5 {[%emt 0:05:07]} Qxc3 {[%emt 0:03:34]} 37. Rb3 {[%emt 0:00:59]} Qf6 {[%emt 0:01:01]} 38. Rd3 {[%emt 0:01:11]} Nf7 {[%emt 0:07:59]} 39. Ra7 {[%emt 0:01:48]} g6 {[%emt 0:00:27]} 40. Qe2 {[%emt 0:02:19]} Qxh4+ {[%emt 0:00:29]} 0-1

[Event "106th British-ch Major 2019"]
[Site "Torquay"]
[Date "2019.08.04"]
[Round "9.31"]
[White "Hussain, Adam"]
[Black "Miller, George I"]
[Result "0-1"]
[ECO "C01"]
[WhiteElo "1515"]
[BlackElo "1891"]
[Annotator "NA"]
[PlyCount "116"]
[EventDate "2019.07.27"]
[EventType "swiss"]
[EventCountry "GBR"]
[SourceTitle "playchess.com"]
[Source "ChessBase"]
[SourceQuality "1"]
[TimeControl "40/5400+30:1800+30"]

1. d4 {[%emt 0:00:00]} e6 {[%emt 0:00:00]} 2. e4 {[%emt 0:00:00]} d5 {[%emt 0:00:00]} 3. exd5 {[%emt 0:00:00]} exd5 {[%emt 0:00:00]} 4. Nc3 {[%emt 0:00:02]} Bb4 {[%emt 0:02:45]} 5. Bd3 {[%emt 0:00:08]} Ne7 {[%emt 0:00:31]} 6. Qf3 {[%emt 0:00:17]} Be6 {[%emt 0:01:47]} 7. Nge2 {[%emt 0:00:07]} Nbc6 {[%emt 0:06:03]} 8. O-O {[%emt 0:00:56]} Qd7 {[%emt 0:00:24]} 9. Be3 {[%emt 0:04:13]} O-O-O {[%emt 0:03:20]} 10. a3 {[%emt 0:00:20]} Bd6 {[%emt 0:01:15]} 11. Nb5 {[%emt 0:00:59]} Kb8 {[%emt 0:04:59]} 12. Nxd6 {[%emt 0:00:28]} Qxd6 {[%emt 0:00:05]} 13. b4 {[%emt 0:00:33]} Ng6 {[%emt 0:02:33]} 14. b5 {[%emt 0:02:23]} Nce7 {[%emt 0:01:40]} 15. a4 {[%emt 0:01:06]} Nh4 {[%emt 0:01:54]} 16. Qf4 {[%emt 0:01:11]} Qxf4 {[%emt 0:03:38]} 17. Nxf4 {[%emt 0:01:24]} Bf5 {[%emt 0:00:18]} 18. Rfd1 {[%emt 0:01:16]} Bxd3 {[%emt 0:00:08]} 19. Nxd3 {[%emt 0:00:10]} Nhf5 {[%emt 0:00:08]} 20. Ne5 {[%emt 0:00:15]} Nd6 {[%emt 0:00:20]} 21. f3 {[%emt 0:00:21]} f6 {[%emt 0:03:07]} 22. Nd3 {[%emt 0:00:19]} Rhe8 {[%emt 0:03:16]} 23. Bf2 {[%emt 0:01:57]} Kc8 {[%emt 0:05:28]} 24. Rab1 {[%emt 0:01:01]} Nc4 {[%emt 0:03:10]} 25. Nb2 {[%emt 0:04:07]} Nxb2 {[%emt 0:00:05]} 26. Rxb2 {[%emt 0:00:07]} Nf5 {[%emt 0:00:10]} 27. Rb3 {[%emt 0:01:04]} Nd6 {[%emt 0:00:17]} 28. Kf1 {[%emt 0:00:46]} Re6 {[%emt 0:02:43]} 29. Be3 {[%emt 0:04:00]} Rde8 {[%emt 0:00:59]} 30. Kf2 {[%emt 0:00:53]} Nf5 {[%emt 0:00:55]} 31. Rdd3 {[%emt 0:00:17]} Kd7 {[%emt 0:01:47]} 32. Rbc3 {[%emt 0:05:31]} Nxe3 {[%emt 0:08:55]} 33. Rxe3 {[%emt 0:00:47]} Rxe3 {[%emt 0:00:04]} 34. Rxe3 {[%emt 0:00:04]} Rxe3 {[%emt 0:00:06]} 35. Kxe3 {[%emt 0:00:04]} c6 {[%emt 0:00:02]} 36. Kd3 {[%emt 0:00:19]} cxb5 {[%emt 0:00:03]} 37. axb5 {[%emt 0:00:06]} a5 {[%emt 0:00:03]} 38. bxa6 {[%emt 0:00:15]} bxa6 {[%emt 0:00:06]} 39. Kc3 {[%emt 0:00:09]} a5 {[%emt 0:00:58]} 40. Kb3 {[%emt 0:00:06]} Kc6 {[%emt 0:00:04]} 41. Ka4 {[%emt 0:30:15]} Kb6 {[%emt 0:30:03]} 42. f4 {[%emt 0:02:09]} f5 {[%emt 0:00:12]} 43. h3 {[%emt 0:00:06]} h5 {[%emt 0:00:20]} 44. g3 {[%emt 0:00:10]} Ka6 {[%emt 0:00:17]} 45. h4 {[%emt 0:01:24]} Kb6 {[%emt 0:00:04]} 46. Ka3 {[%emt 0:00:24]} Kb5 {[%emt 0:00:05]} 47. Kb3 {[%emt 0:00:04]} a4+ {[%emt 0:01:08]} 48. Ka3 {[%emt 0:00:45]} Ka5 {[%emt 0:00:15]} 49. c4 {[%emt 0:00:40]} dxc4 {[%emt 0:00:39]} 50. d5 {[%emt 0:00:06]} c3 {[%emt 0:00:30]} 51. d6 {[%emt 0:00:09]} Kb6 {[%emt 0:00:07]} 52. Kxa4 {[%emt 0:00:15]} c2 {[%emt 0:00:06]} 53. d7 {[%emt 0:00:02]} Kc7 {[%emt 0:00:08]} 54. g4 {[%emt 0:00:33]} c1=Q {[%emt 0:00:11]} 55. g5 {[%emt 0:00:05]} Qb2 {[%emt 0:00:09]} 56. g6 {[%emt 0:00:06]} Kxd7 {[%emt 0:00:10]} 57. Ka5 {[%emt 0:00:05]} Kc6 {[%emt 0:00:08]} 58. Ka4 {[%emt 0:00:04]} Kc5 {[%emt 0:00:09]} 0-1